bitfinex-derivatives/quotes_BTCF0:USTF0_20241125
["timestamp","ask_amount","ask_price","bid_price","bid_amount"]
[1732499111803,0.051746,97275.0,97274.0,0.00163012]
[1732499112110,0.0004,97275.0,97274.0,0.00163012]
[1732499112290,0.0004,97275.0,97274.0,0.31003012]
[1732499112494,0.0004,97275.0,97274.0,0.50961012]
[1732499112900,0.09104816,97288.0,97287.0,0.05134]
[1732499113097,0.09104816,97291.0,97287.0,0.7216]
[1732499113395,0.09104816,97299.0,97287.0,0.89008]
[1732499113702,0.18192303,97315.0,97287.0,0.89008]
[1732499113703,0.09104816,97305.0,97298.0,0.3612]
[1732499113890,0.051324,97317.0,97298.0,0.3612]
[1732499113891,0.09104816,97311.0,97306.0,0.05133]
[1732499114096,0.09104816,97311.0,97310.0,0.3608]
[1732499114400,0.09104816,97321.0,97310.0,0.3608]
[1732499114596,0.09104816,97322.0,97320.0,0.412122]
[1732499114905,0.00695065,97321.0,97320.0,0.3612]
[1732499115100,0.05827265,97321.0,97320.0,0.3612]
[1732499115291,0.14932081,97321.0,97320.0,0.3608]
[1732499115496,0.14932081,97321.0,97310.0,0.3608]
[1732499115497,0.051327,97311.0,97310.0,0.3608]
[1732499115696,0.051332,97302.0,97298.0,0.3608]
[1732499115899,0.051333,97300.0,97298.0,0.3608]
[1732499116905,0.09104583,97299.0,97298.0,0.3608]
[1732499117603,0.051333,97300.0,97298.0,0.3608]
[1732499117901,0.05133,97306.0,97299.0,0.0004]
[1732499118312,0.0004,97311.0,97305.0,0.0004]
[1732499118505,0.00739364,97311.0,97306.0,0.3608]
[1732499118804,0.0004,97311.0,97310.0,0.0004]
[1732499120505,0.0323,97311.0,97310.0,0.0004]
[1732499120708,0.03930631,97311.0,97310.0,0.0004]
[1732499120906,0.0323,97311.0,97310.0,0.0004]
[1732499121105,0.03930483,97311.0,97310.0,0.0004]
[1732499121512,0.0721044,97311.0,97310.0,0.0004]
[1732499122610,0.16320136,97311.0,97310.0,0.0004]
[1732499122801,0.0721044,97311.0,97310.0,0.0004]
[1732499123002,0.0393044,97311.0,97310.0,0.0004]
[1732499123803,0.0323,97311.0,97310.0,0.0004]
[1732499125599,0.0323,97311.0,97310.0,0.412528]
[1732499125818,0.0004,97311.0,97310.0,0.412528]
[1732499126404,0.051727,97311.0,97310.0,0.3612]
[1732499127415,0.0004,97311.0,97310.0,0.3612]
[1732499127712,0.0004,97311.0,97310.0,0.66948]
[1732499128314,0.0004,97311.0,97310.0,1.19832]
[1732499129208,0.0004,97311.0,97310.0,0.89004]
[1732499129411,0.0004,97311.0,97310.0,1.19832]
[1732499129612,0.02272644,97335.0,97310.0,1.19832]
[1732499129810,0.051317,97330.0,97324.0,0.3608]
[1732499130013,0.051317,97330.0,97324.0,0.3612]
[1732499130409,0.051315,97334.0,97324.0,0.3612]
[1732499130609,0.051315,97334.0,97324.0,0.54517674]
[1732499130812,0.051315,97334.0,97324.0,0.54517451]
[1732499131003,0.051315,97334.0,97324.0,0.57777451]
[1732499131403,0.051316,97332.0,97324.0,0.57777451]
[1732499131606,0.0302,97337.0,97324.0,0.57777451]
[1732499131808,0.00694988,97336.0,97324.0,0.57777451]
[1732499132306,0.051315,97335.0,97324.0,0.39326482]
[1732499132618,0.05141338,97325.0,97324.0,0.0004]
[1732499132817,0.05838912,97325.0,97324.0,0.0004]
[1732499133113,0.14940098,97325.0,97324.0,0.0004]
[1732499133412,0.05838865,97325.0,97324.0,0.0004]
[1732499133811,9.338e-05,97325.0,97324.0,0.0004]
[1732499139823,9.338e-05,97325.0,97324.0,0.1684]
[1732499141219,9.338e-05,97325.0,97324.0,0.0004]
[1732499141407,0.09379338,97325.0,97324.0,0.0004]
[1732499142204,0.10075796,97325.0,97324.0,0.0004]
[1732499143007,0.00705796,97325.0,97324.0,0.0004]
[1732499143513,0.00704503,97325.0,97324.0,0.0004]
[1732499144511,0.00704503,97325.0,97324.0,0.18425561]
[1732499144716,9.338e-05,97325.0,97324.0,0.0004]
[1732499145424,9.338e-05,97325.0,97324.0,0.24573461]
[1732499145622,9.338e-05,97325.0,97324.0,0.0004]
[1732499146527,0.00701545,97344.0,97324.0,0.60209456]
[1732499146716,0.0645,97347.0,97343.0,0.41211]
[1732499146911,0.00704034,97346.0,97344.0,0.051309]
[1732499147119,0.00704035,97345.0,97343.0,0.3608]
[1732499147319,0.051303,97357.0,97344.0,0.051309]
[1732499147621,0.00704023,97356.0,97343.0,0.3608]
[1732499147821,0.00704023,97355.0,97343.0,0.3608]
[1732499148117,0.00704023,97354.0,97343.0,0.3608]
[1732499148423,0.00704023,97354.0,97345.0,0.051309]
[1732499148623,0.00704023,97354.0,97346.0,0.051308]
[1732499149122,0.00704023,97354.0,97347.0,0.051308]
[1732499149523,0.00704023,97354.0,97343.0,0.3608]
[1732499149524,0.05834423,97354.0,97353.0,0.3608]
[1732499151130,0.00705338,97354.0,97353.0,0.3608]
[1732499151625,0.051304,97355.0,97353.0,0.3608]
[1732499151830,0.00705338,97354.0,97353.0,0.3608]
[1732499155232,0.01663998,97354.0,97353.0,0.3608]
[1732499157331,0.16856812,97354.0,97344.0,0.051309]
[1732499157526,0.051309,97346.0,97345.0,0.051309]
[1732499157727,0.0608956,97346.0,97345.0,0.051309]
[1732499158337,0.06850177,97346.0,97345.0,0.051309]
[1732499158919,0.00992165,97346.0,97345.0,0.051309]
[1732499159220,0.01717686,97346.0,97345.0,0.051309]
[1732499159852,0.00992165,97346.0,97345.0,0.051309]
[1732499161127,0.01711794,97346.0,97345.0,0.051309]
[1732499162827,0.01711794,97346.0,97345.0,0.29660436]
[1732499163031,0.01711794,97346.0,97345.0,0.051309]
[1732499163231,0.01711794,97346.0,97345.0,0.71162411]
[1732499163430,0.00992165,97346.0,97345.0,0.71162411]
[1732499164533,0.00979761,97346.0,97345.0,0.71162411]
[1732499165038,0.0170015,97346.0,97345.0,0.71162411]
[1732499165825,0.0170015,97346.0,97345.0,1.07242411]
[1732499166137,0.0170015,97346.0,97345.0,1.37939757]
[1732499167126,0.0170015,97346.0,97345.0,1.07242411]
[1732499167333,0.0170015,97346.0,97345.0,1.37936885]
[1732499167531,0.0170015,97346.0,97345.0,1.07242411]
[1732499167830,0.00979761,97346.0,97345.0,1.37936842]
[1732499168222,0.00979761,97346.0,97345.0,0.772909]
[1732499170846,0.00979761,97346.0,97345.0,0.7216]
[1732499171225,0.00979761,97346.0,97345.0,0.772909]
[1732499171632,0.00979761,97346.0,97345.0,1.081109]
[1732499171827,9.716e-05,97358.0,97357.0,0.051303]
[1732499172024,0.009824,97358.0,97357.0,0.412103]
[1732499175131,0.10099894,97358.0,97357.0,0.412103]
[1732499175434,0.13887907,97358.0,97357.0,0.3608]
[1732499176334,0.01733642,97358.0,97357.0,0.3608]
[1732499176933,0.13918158,97358.0,97357.0,0.3608]
[1732499177124,0.01733642,97358.0,97357.0,0.3608]
[1732499179525,0.01722657,97358.0,97357.0,0.3608]
[1732499182936,0.01708786,97358.0,97357.0,0.6621607]
[1732499184234,0.01708786,97358.0,97357.0,0.96943047]
[1732499184432,0.06838986,97358.0,97357.0,0.30727405]
[1732499184632,0.06838986,97358.0,97357.0,0.18438809]
[1732499184931,0.051306,97350.0,97345.0,0.3608]
[1732499185129,0.1083026,97349.0,97345.0,0.3608]
[1732499185334,0.1083026,97348.0,97345.0,0.3608]
[1732499185527,0.0169907,97347.0,97345.0,0.3608]
[1732499185724,0.00971209,97346.0,97345.0,0.3608]
[1732499186031,0.01693289,97346.0,97345.0,0.3608]
[1732499187330,0.01693289,97346.0,97342.0,0.18438809]
[1732499187531,0.01693289,97346.0,97338.0,0.26430352]
[1732499187532,0.01693289,97345.0,97341.0,0.54518809]
[1732499187731,0.0004,97343.0,97341.0,0.051311]
[1732499187936,0.00971209,97342.0,97341.0,0.23569909]
[1732499188133,0.01693289,97342.0,97341.0,0.23569909]
[1732499188328,0.01693289,97342.0,97341.0,0.412111]
[1732499188932,0.01693289,97342.0,97341.0,0.59652472]
[1732499189935,0.00971209,97342.0,97341.0,0.59652472]
[1732499190139,0.00971209,97342.0,97341.0,0.412111]
[1732499190537,0.0096448,97342.0,97341.0,0.412111]
[1732499192935,0.0096448,97342.0,97341.0,0.71421794]
[1732499193743,0.0004,97343.0,97341.0,0.71421794]
[1732499193932,0.0004,97343.0,97342.0,0.30210694]
[1732499194134,0.0004,97343.0,97342.0,0.30250694]
[1732499195136,0.0004,97343.0,97342.0,0.30439163]
[1732499195734,0.0004,97343.0,97342.0,0.6116965]
[1732499196043,0.0004,97343.0,97342.0,0.30439163]
[1732499196443,0.0004,97343.0,97342.0,0.30769785]
[1732499197143,0.0004,97343.0,97342.0,0.0004]
[1732499197446,0.65991,97343.0,97342.0,0.0004]
[1732499197648,0.6669236,97343.0,97337.0,0.18438588]
[1732499197941,0.6669236,97343.0,97324.0,0.24583809]
[1732499197942,0.051319,97325.0,97324.0,0.24583809]
[1732499198150,0.051321,97322.0,97316.0,0.24583809]
[1732499198442,0.66904,97325.0,97313.0,0.24583809]
[1732499198443,0.00160001,97325.0,97313.0,0.24583809]
[1732499198642,0.051323,97319.0,97313.0,0.24583809]
[1732499198842,0.1674,97331.0,97324.0,0.0004]
[1732499199049,0.051319,97325.0,97324.0,0.0004]
[1732499199248,0.09129082,97338.0,97337.0,0.051313]
[1732499199542,0.0004,97343.0,97342.0,0.05131]
[1732499200351,0.0004,97343.0,97335.0,0.0317]
[1732499200643,0.051313,97338.0,97337.0,0.051313]
[1732499201846,0.0004,97343.0,97335.0,0.0317]
[1732499201847,0.051313,97336.0,97335.0,0.0317]
[1732499202143,0.051313,97336.0,97324.0,0.01827354]
[1732499202144,0.52784,97337.0,97323.0,0.00052]
[1732499202335,0.051322,97321.0,97318.0,0.29716109]
[1732499202541,0.051323,97320.0,97319.0,0.051322]
[1732499202844,0.0004,97324.0,97323.0,0.05132]
[1732499204950,0.0004,97324.0,97317.0,0.29716109]
[1732499205152,0.0004,97324.0,97317.0,0.051323]
[1732499205348,0.051323,97317.0,97315.0,0.29716209]
[1732499205548,0.0004,97318.0,97317.0,0.051323]
[1732499205744,0.0004,97324.0,97321.0,0.051321]
[1732499205953,0.05172,97324.0,97321.0,0.051321]
[1732499206553,0.05172,97324.0,97322.0,0.051321]
[1732499206750,0.05132,97323.0,97318.0,0.051323]
[1732499207440,0.051321,97322.0,97318.0,0.051323]
[1732499207651,0.0004,97324.0,97317.0,0.0004]
[1732499207843,0.051322,97320.0,97317.0,0.0004]
[1732499208043,0.0004,97318.0,97317.0,0.0004]
[1732499212652,0.051723,97318.0,97317.0,0.0004]
[1732499215661,0.412523,97318.0,97317.0,0.0004]
[1732499218053,0.051723,97318.0,97317.0,0.0004]
[1732499218255,0.0004,97318.0,97317.0,0.0004]
[1732499218556,0.0004,97318.0,97317.0,0.051723]
[1732499220251,0.051723,97318.0,97317.0,0.051723]
[1732499223061,0.051723,97318.0,97317.0,0.0004]
[1732499224766,0.051723,97318.0,97317.0,0.051723]
[1732499225563,0.051723,97318.0,97317.0,0.0004]
[1732499227263,0.051723,97318.0,97317.0,0.24623809]
[1732499227465,0.051723,97318.0,97317.0,0.29756109]
[1732499227768,0.051723,97318.0,97317.0,0.051723]
[1732499228265,0.0004,97318.0,97317.0,0.051723]
[1732499228468,0.0004,97324.0,97323.0,0.05132]
[1732499228667,0.09129082,97335.0,97323.0,0.3608]
[1732499228969,0.051315,97334.0,97332.0,0.24599499]
[1732499229172,0.051315,97334.0,97333.0,0.24599499]
[1732499229467,0.051315,97333.0,97331.0,0.24599499]
[1732499229672,0.412112,97338.0,97330.0,0.24599499]
[1732499229856,0.0004,97332.0,97331.0,0.051316]
[1732499230264,0.0004,97332.0,97331.0,0.35375627]
[1732499230568,0.0004,97332.0,97331.0,0.35883522]
[1732499231071,0.0004,97332.0,97331.0,0.66123339]
[1732499231275,0.0004,97332.0,97331.0,0.71451417]
[1732499231566,0.0004,97332.0,97331.0,1.08337488]
[1732499231763,0.0004,97332.0,97331.0,1.08337902]
[1732499231957,0.0004,97332.0,97331.0,1.08337771]
[1732499232158,0.0004,97332.0,97331.0,1.08337527]
[1732499232563,0.0004,97332.0,97331.0,0.71451417]
[1732499234565,0.0004,97332.0,97331.0,1.04005488]
[1732499234873,0.0004,97332.0,97331.0,0.73765671]
[1732499235168,0.0004,97332.0,97331.0,0.43048186]
[1732499235673,0.0004,97343.0,97331.0,0.98508333]
[1732499235973,0.0004,97343.0,97342.0,0.05131]
[1732499236173,0.0004,97343.0,97342.0,0.29698238]
[1732499236369,0.0004,97343.0,97342.0,0.08241]
[1732499237573,0.3608,97355.0,97342.0,0.08241]
[1732499237870,9.716e-05,97358.0,97357.0,0.051302]
[1732499238075,9.716e-05,97358.0,97357.0,0.412102]
[1732499238382,9.716e-05,97358.0,97357.0,0.413702]
[1732499240369,9.716e-05,97358.0,97357.0,0.65924983]
[1732499240572,9.716e-05,97358.0,97357.0,0.413702]
[1732499240981,0.051294,97373.0,97357.0,0.38019679]
[1732499241173,0.051294,97373.0,97360.0,0.07119718]
[1732499241483,0.051294,97373.0,97367.0,0.051297]
[1732499241871,0.051294,97373.0,97372.0,0.0016]
[1732499250581,0.359374,97373.0,97372.0,0.0016]
[1732499251673,0.526054,97373.0,97372.0,0.0016]
[1732499252074,0.217974,97373.0,97372.0,0.0016]
[1732499252274,0.526054,97373.0,97372.0,0.0016]
[1732499253400,0.359374,97373.0,97372.0,0.0016]
[1732499253576,0.526054,97373.0,97372.0,0.0016]
[1732499255373,0.217974,97373.0,97372.0,0.0016]
[1732499256784,0.526054,97373.0,97372.0,0.0016]
[1732499257187,0.217974,97373.0,97372.0,0.0016]
[1732499258182,0.526054,97373.0,97372.0,0.0016]
[1732499258379,0.217974,97373.0,97372.0,0.0016]
[1732499258786,0.526054,97373.0,97372.0,0.0016]
[1732499259488,0.217974,97373.0,97372.0,0.0016]
[1732499259680,0.526054,97373.0,97372.0,0.0016]
[1732499261682,0.67798214,97373.0,97372.0,0.0016]
[1732499261882,0.526054,97373.0,97372.0,0.0016]
[1732499263288,0.217974,97373.0,97372.0,0.0016]
[1732499264585,0.36990214,97373.0,97372.0,0.0016]
[1732499264790,0.37025424,97373.0,97372.0,0.0016]
[1732499264985,0.36993424,97373.0,97372.0,0.0016]
[1732499265191,0.26754138,97373.0,97372.0,0.0016]
[1732499265485,0.217654,97373.0,97372.0,0.0016]
[1732499265691,0.27384212,97373.0,97372.0,0.0016]
[1732499265889,0.22395456,97373.0,97372.0,0.0016]
[1732499266090,0.22395456,97373.0,97372.0,0.052894]
[1732499266091,0.05618732,97373.0,97372.0,0.052894]
[1732499266283,0.12818951,97373.0,97372.0,0.053019]
[1732499266686,0.00630056,97373.0,97372.0,0.053019]
[1732499269894,0.00630056,97373.0,97372.0,0.001725]
[1732499271187,0.00630056,97373.0,97372.0,0.24770819]
[1732499271486,0.00630056,97373.0,97372.0,0.001725]
[1732499280296,0.05759456,97373.0,97372.0,0.001725]
[1732499282295,0.05759456,97373.0,97372.0,0.24769031]
[1732499283193,0.05759456,97373.0,97372.0,0.001725]
[1732499283407,0.05759456,97373.0,97372.0,0.24769031]
[1732499284700,0.36567456,97373.0,97372.0,0.001725]
[1732499285002,0.051297,97366.0,97348.0,0.00056]
[1732499285201,0.3608,97349.0,97339.0,0.30712795]
[1732499285509,0.3608,97349.0,97334.0,0.30712795]
[1732499285510,0.051313,97336.0,97334.0,0.30712795]
[1732499285708,0.051313,97336.0,97316.0,0.051323]
[1732499285709,0.051323,97317.0,97316.0,0.30712795]
[1732499286003,0.051323,97317.0,97316.0,0.0307898]
[1732499286004,0.051723,97317.0,97316.0,0.0307898]
[1732499286193,0.05183848,97317.0,97316.0,0.0307898]
[1732499286795,0.17321604,97317.0,97316.0,0.0307898]
[1732499287898,0.1664,97329.0,97316.0,0.0307898]
[1732499288101,0.051317,97329.0,97323.0,0.3608]
[1732499288304,0.051322,97318.0,97317.0,0.032]
[1732499288504,0.051322,97318.0,97316.0,0.0307898]
[1732499288700,0.051722,97318.0,97316.0,0.0307898]
[1732499288900,0.0004,97318.0,97317.0,0.051323]
[1732499289307,0.00011581,97320.0,97316.0,0.0307898]
[1732499289503,0.00011581,97320.0,97319.0,0.412122]
[1732499290199,0.1664,97333.0,97327.0,0.051317]
[1732499290399,0.1664,97333.0,97328.0,0.0635]
[1732499290596,0.1664,97333.0,97328.0,0.0329]
[1732499290597,0.051316,97330.0,97328.0,0.0329]
[1732499290805,0.051323,97317.0,97316.0,0.0307898]
[1732499290999,0.412123,97317.0,97316.0,0.0307898]
[1732499291200,0.72048269,97317.0,97316.0,8.98e-05]
[1732499292007,1.08128269,97317.0,97316.0,8.98e-05]
[1732499292305,0.77300269,97317.0,97316.0,8.98e-05]
[1732499294609,0.93916269,97317.0,97316.0,8.98e-05]
[1732499295198,0.57836269,97317.0,97316.0,8.98e-05]
[1732499295506,0.43065734,97317.0,97316.0,8.98e-05]
[1732499295812,0.23601734,97317.0,97316.0,8.98e-05]
[1732499296511,0.59681734,97317.0,97316.0,8.98e-05]
[1732499298714,0.90509734,97317.0,97316.0,8.98e-05]
[1732499298900,0.051336,97292.0,97291.0,0.0305]
[1732499299101,0.412136,97292.0,97291.0,0.0305]
[1732499299302,0.412536,97292.0,97291.0,0.0305]
[1732499299502,0.051339,97286.0,97285.0,0.0323]
[1732499299909,0.051339,97286.0,97285.0,8.458e-05]
[1732499299910,0.051739,97286.0,97285.0,8.458e-05]
[1732499314626,0.217979,97286.0,97285.0,8.458e-05]
[1732499323231,0.051739,97286.0,97285.0,8.458e-05]
[1732499327428,0.14321699,97286.0,97285.0,8.458e-05]
[1732499328226,0.051739,97286.0,97285.0,8.458e-05]
[1732499330331,0.17387085,97286.0,97285.0,8.458e-05]
[1732499330530,0.051739,97286.0,97285.0,8.458e-05]
[1732499330922,0.17387364,97286.0,97285.0,8.458e-05]
[1732499331431,0.051739,97286.0,97285.0,8.458e-05]
[1732499331830,0.17388795,97286.0,97285.0,8.458e-05]
[1732499333524,0.051739,97286.0,97285.0,8.458e-05]
[1732499333828,0.17388795,97286.0,97285.0,8.458e-05]
[1732499334929,0.051739,97286.0,97285.0,8.458e-05]
[1732499335130,0.051739,97286.0,97270.0,0.30712795]
[1732499335131,0.051347,97271.0,97270.0,0.30712795]
[1732499335333,1.04025247,97271.0,97254.0,0.30712795]
[1732499335637,1.04025247,97271.0,97252.0,0.0649]
[1732499335638,0.051357,97253.0,97252.0,0.0649]
[1732499335831,0.14293173,97253.0,97252.0,0.0319]
[1732499336028,0.05136,97247.0,97246.0,0.30712795]
[1732499336241,0.41216,97247.0,97246.0,0.00013336]
[1732499336536,0.41256,97247.0,97246.0,0.00013336]
[1732499337536,0.09169093,97249.0,97247.0,0.05136]
[1732499337729,0.12209968,97257.0,97246.0,0.66941336]
[1732499338036,0.0004,97247.0,97246.0,0.41229336]
[1732499340328,0.0004,97247.0,97246.0,0.36093336]
[1732499341033,0.0004,97247.0,97246.0,0.66941336]
[1732499341232,0.0004,97247.0,97246.0,0.36093336]
[1732499343032,0.0004,97247.0,97246.0,0.00013336]
[1732499343244,0.05176,97247.0,97246.0,0.00013336]
[1732499343434,0.37850529,97247.0,97246.0,0.00013336]
[1732499343635,0.37850529,97247.0,97242.0,0.0015425]
[1732499343636,0.051362,97243.0,97242.0,0.0015425]
[1732499343836,0.051362,97243.0,97228.0,0.0333]
[1732499343837,0.051369,97229.0,97228.0,0.0333]
[1732499344347,0.051769,97229.0,97228.0,0.0333]
[1732499344540,0.051765,97229.0,97228.0,0.00010784]
[1732499345038,0.051765,97229.0,97208.0,0.0328]
[1732499345039,0.051376,97209.0,97208.0,0.0328]
[1732499345242,0.217416,97209.0,97208.0,0.0328]
[1732499345443,0.0004,97209.0,97208.0,0.0328]
[1732499345642,0.05136,97239.0,97208.0,1.0022]
[1732499345938,0.1865955,97246.0,97238.0,0.0016]
[1732499346137,0.05136,97239.0,97238.0,0.0016]
[1732499346534,0.3608,97245.0,97238.0,0.0016]
[1732499346737,0.03901687,97246.0,97238.0,0.052961]
[1732499346935,0.16608,97245.0,97244.0,0.0016]
[1732499347138,0.16608,97245.0,97232.0,0.051364]
[1732499347139,0.051361,97237.0,97232.0,0.051364]
[1732499347341,0.16608,97245.0,97229.0,0.3608]
[1732499347544,0.0004,97233.0,97232.0,0.051364]
[1732499347932,0.0332,97259.0,97232.0,0.30852]
[1732499348137,0.3608,97269.0,97245.0,0.48315903]
[1732499348138,0.051348,97263.0,97245.0,0.48315903]
[1732499348445,0.051349,97261.0,97246.0,0.051356]
[1732499348741,0.16608,97262.0,97249.0,0.051355]
[1732499348742,0.051351,97257.0,97249.0,0.051355]
[1732499348939,0.051351,97257.0,97251.0,0.051354]
[1732499349941,0.051352,97255.0,97253.0,0.3608]
[1732499350334,0.051349,97261.0,97253.0,0.3608]
[1732499350537,0.16608,97262.0,97253.0,0.3608]
[1732499350942,0.05135,97258.0,97254.0,0.051352]
[1732499351146,0.16608,97262.0,97253.0,0.3608]
[1732499351645,0.051351,97257.0,97253.0,0.3608]
[1732499351852,0.16608,97262.0,97253.0,0.3608]
[1732499352042,0.01870867,97264.0,97253.0,0.3608]
[1732499352043,0.051352,97255.0,97253.0,0.3608]
[1732499352348,0.051353,97253.0,97229.0,0.24550051]
[1732499352649,0.051367,97227.0,97222.0,0.051369]
[1732499352951,0.0004,97223.0,97222.0,0.051369]
[1732499353946,0.0004,97223.0,97217.0,0.3925]
[1732499353947,0.051371,97218.0,97217.0,0.3925]
[1732499354148,0.051371,97218.0,97210.0,0.3608]
[1732499354149,0.00964428,97218.0,97210.0,0.3608]
[1732499354337,0.00964428,97218.0,97203.0,0.24550051]
[1732499354338,0.051375,97211.0,97203.0,0.24550051]
[1732499354542,0.051775,97211.0,97201.0,0.0323]
[1732499354744,0.051775,97211.0,97203.0,0.051379]
[1732499354745,0.01003789,97210.0,97203.0,0.051379]
[1732499355043,0.01003789,97210.0,97208.0,0.051376]
[1732499355244,0.01003789,97210.0,97206.0,0.3608]
[1732499355639,0.01003789,97210.0,97208.0,0.051376]
[1732499356146,0.01003789,97210.0,97206.0,0.3608]
[1732499356147,0.051362,97236.0,97219.0,0.051371]
[1732499356345,0.051366,97228.0,97222.0,0.3608]
[1732499356548,0.051363,97234.0,97229.0,0.051365]
[1732499356752,0.051363,97234.0,97222.0,0.3608]
[1732499356753,0.051368,97224.0,97222.0,0.3608]
[1732499357041,0.0004,97223.0,97222.0,0.3608]
[1732499366853,0.0004,97223.0,97209.0,8.392e-05]
[1732499366854,0.051375,97211.0,97209.0,8.392e-05]
[1732499367955,0.00778686,97210.0,97209.0,8.392e-05]
[1732499368153,0.01795445,97210.0,97209.0,0.05145992]
[1732499368357,0.0164741,97222.0,97220.0,0.05137]
[1732499368550,0.051369,97222.0,97220.0,0.05137]
[1732499369166,0.051366,97228.0,97221.0,0.051369]
[1732499369354,0.00731171,97227.0,97224.0,0.3608]
[1732499369545,0.051367,97226.0,97224.0,0.3608]
[1732499369957,0.051367,97226.0,97224.0,0.412168]
[1732499370156,0.051367,97226.0,97224.0,0.3608]
[1732499370465,0.1658,97234.0,97224.0,0.3608]
[1732499370649,0.00732643,97233.0,97224.0,0.3608]
[1732499370953,0.051367,97225.0,97224.0,0.3608]
[1732499371164,0.05869343,97225.0,97224.0,0.3608]
[1732499371345,0.051367,97225.0,97224.0,0.3608]
[1732499371663,0.05869545,97225.0,97224.0,0.3608]
[1732499372854,0.00732845,97225.0,97224.0,0.3608]
[1732499373059,0.051358,97244.0,97224.0,0.66936]
[1732499373259,0.00728703,97243.0,97240.0,0.051359]
[1732499373562,0.00728703,97243.0,97240.0,0.412159]
[1732499373563,0.00728703,97242.0,97240.0,0.412159]
[1732499375255,0.00728703,97241.0,97240.0,0.412159]
[1732499376655,0.00728703,97241.0,97240.0,0.3608]
[1732499377157,0.00728703,97241.0,97240.0,0.41216]
[1732499377463,0.051352,97255.0,97250.0,0.051354]
[1732499377658,0.00708148,97254.0,97250.0,0.412154]
[1732499378260,0.051353,97252.0,97250.0,0.3608]
[1732499378472,0.00708179,97251.0,97250.0,0.3608]
[1732499378761,0.051359,97241.0,97230.0,0.24550051]
[1732499378963,0.051359,97241.0,97213.0,0.16576]
[1732499378964,0.3608,97231.0,97218.0,0.24550051]
[1732499379157,0.051367,97227.0,97221.0,0.051369]
[1732499379352,0.00711212,97226.0,97218.0,0.3608]
[1732499379558,0.05137,97220.0,97218.0,0.3608]
[1732499379760,0.05177,97220.0,97218.0,0.3608]
[1732499379960,0.0004,97220.0,97218.0,0.412171]
[1732499380255,0.0004,97220.0,97219.0,0.24704336]
[1732499380562,0.0004,97220.0,97219.0,0.00154285]
[1732499380964,0.0004,97220.0,97219.0,0.24735665]
[1732499381260,0.0004,97220.0,97219.0,0.00154285]
[1732499385363,0.16584,97220.0,97219.0,0.00154285]
[1732499385667,0.17282569,97220.0,97219.0,0.00154285]
[1732499385865,0.16584,97220.0,97219.0,0.00154285]
[1732499386060,0.17282555,97220.0,97219.0,0.00154285]
[1732499386257,0.22419555,97220.0,97219.0,0.00154285]
[1732499386462,0.25579555,97220.0,97219.0,0.00154285]
[1732499386663,0.24881,97220.0,97219.0,0.00154285]
[1732499387757,0.25580008,97220.0,97219.0,0.00154285]
[1732499388756,0.24881,97220.0,97219.0,0.00154285]
[1732499390868,0.25581592,97220.0,97219.0,0.00154285]
[1732499391569,0.051375,97210.0,97209.0,8.392e-05]
[1732499391766,0.05838092,97210.0,97209.0,8.392e-05]
[1732499392073,0.05878092,97210.0,97209.0,8.392e-05]
[1732499394272,0.051775,97210.0,97209.0,8.392e-05]
[1732499394471,0.05881036,97210.0,97209.0,8.392e-05]
[1732499394772,0.051775,97210.0,97209.0,8.392e-05]
[1732499400166,0.05884519,97210.0,97209.0,8.392e-05]
[1732499400774,0.051775,97210.0,97209.0,8.392e-05]
[1732499402074,0.360375,97210.0,97209.0,8.392e-05]
[1732499403372,0.0004,97210.0,97209.0,8.392e-05]
[1732499403777,0.0004,97210.0,97209.0,0.03168392]
[1732499407683,0.0004,97210.0,97209.0,0.27763746]
[1732499407878,0.0004,97210.0,97209.0,0.03168392]
[1732499410488,0.0004,97210.0,97209.0,0.27780654]
[1732499410687,0.0004,97210.0,97209.0,0.03168392]
[1732499412181,0.0004,97210.0,97209.0,0.39248392]
[1732499412488,0.0004,97210.0,97209.0,0.68521729]
[1732499413391,0.0004,97210.0,97209.0,0.70026112]
[1732499413685,0.0004,97210.0,97209.0,0.684212]
[1732499415181,0.12176166,97228.0,97209.0,0.684212]
[1732499415182,0.051365,97229.0,97228.0,0.051365]
[1732499415387,0.051365,97229.0,97228.0,0.412165]
[1732499415686,0.051365,97230.0,97228.0,0.364]
[1732499416083,0.051365,97230.0,97227.0,0.24629261]
[1732499416084,0.051365,97230.0,97229.0,0.0032]
[1732499417384,0.00140001,97236.0,97230.0,0.051365]
[1732499417584,0.051357,97245.0,97230.0,0.34704938]
[1732499417897,0.051358,97244.0,97230.0,0.35024938]
[1732499418185,0.051358,97243.0,97230.0,0.35024938]
[1732499418387,0.051358,97243.0,97230.0,0.38084938]
[1732499418602,0.051361,97238.0,97230.0,0.38084938]
[1732499418803,0.051361,97237.0,97230.0,0.38129855]
[1732499419100,0.051363,97233.0,97230.0,0.38129855]
[1732499419409,0.051764,97231.0,97230.0,0.0032]
[1732499419597,0.051764,97231.0,97230.0,0.24912452]
[1732499419901,0.051764,97231.0,97230.0,0.0032]
[1732499421898,0.05876234,97231.0,97230.0,0.0032]
[1732499422801,0.051764,97231.0,97230.0,0.0032]
[1732499429012,0.05137,97221.0,97209.0,8.392e-05]
[1732499429211,0.412173,97214.0,97209.0,8.392e-05]
[1732499429398,0.051773,97214.0,97209.0,8.392e-05]
[1732499429603,0.05887678,97214.0,97209.0,8.392e-05]
[1732499429803,0.41967678,97214.0,97209.0,8.392e-05]
[1732499431004,0.05887678,97214.0,97209.0,8.392e-05]
[1732499431708,0.07717898,97214.0,97209.0,8.392e-05]
[1732499432498,0.43797898,97214.0,97209.0,8.392e-05]
[1732499433817,0.051375,97210.0,97209.0,8.392e-05]
[1732499434110,0.22395878,97210.0,97209.0,8.392e-05]
[1732499437113,0.53255878,97210.0,97209.0,8.392e-05]
[1732499437312,0.53264431,97210.0,97209.0,8.392e-05]
[1732499438706,0.53264431,97210.0,97200.0,0.1]
[1732499438911,0.05138,97201.0,97200.0,0.1]
[1732499439117,0.05888378,97201.0,97200.0,0.1]
[1732499439706,0.09038378,97201.0,97200.0,0.1]
[1732499440809,0.2169,97201.0,97200.0,0.1]
[1732499441710,0.05178,97201.0,97200.0,0.1]
[1732499441921,0.21642,97201.0,97200.0,0.1]
[1732499442816,0.22345868,97201.0,97200.0,0.1]